[Event "HUN-ch U8-U18 2019"]
[Site "Balatonlelle"]
[Date "2019.06.21"]
[Round "1.23"]
[White "Makay, Mark Janos"]
[Black "Magold, Filip"]
[Result "0-1"]
[ECO "B42"]
[WhiteElo "1354"]
[BlackElo "1906"]
[Annotator "NA"]
[PlyCount "130"]
[EventDate "2019.06.21"]
[EventType "swiss"]
[EventCountry "HUN"]
[SourceTitle "playchess.com"]
[Source "ChessBase"]
[SourceQuality "1"]
[TimeControl "40/5400+30:1800+30"]

1. e4 {[%emt 0:00:01]} c5 {[%emt 0:00:07]} 2. Nf3 {[%emt 0:00:08]} e6 {[%emt 0:00:10]} 3. d4 {[%emt 0:00:13]} cxd4 {[%emt 0:00:06]} 4. Nxd4 {[%emt 0:00:12]} a6 {[%emt 0:00:12]} 5. Bd3 {[%emt 0:00:20]} Qc7 {[%emt 0:00:27]} 6. c4 {[%emt 0:00:54]} Nf6 {[%emt 0:00:37]} 7. Nc3 {[%emt 0:00:42]} d6 {[%emt 0:00:31]} 8. O-O {[%emt 0:00:51]} Nbd7 {[%emt 0:00:11]} 9. Be3 {[%emt 0:00:39]} Be7 {[%emt 0:00:38]} 10. f3 {[%emt 0:01:39]} b6 {[%emt 0:00:25]} 11. Qd2 {[%emt 0:00:50]} Bb7 {[%emt 0:00:45]} 12. b3 {[%emt 0:00:46]} O-O {[%emt 0:00:15]} 13. Rac1 {[%emt 0:00:39]} Rac8 {[%emt 0:00:29]} 14. Rfd1 {[%emt 0:01:15]} Rfd8 {[%emt 0:00:08]} 15. Be2 {[%emt 0:00:40]} Qb8 {[%emt 0:00:26]} 16. Bf1 {[%emt 0:02:16]} Re8 {[%emt 0:04:31]} 17. Qf2 {[%emt 0:02:54]} Bd8 {[%emt 0:00:22]} 18. Nde2 {[%emt 0:03:48]} Bc7 {[%emt 0:00:23]} 19. g4 {[%emt 0:03:12]} h6 {[%emt 0:07:47]} 20. Ng3 {[%emt 0:04:24]} Qa8 {[%emt 0:09:47]} 21. Bg2 {[%emt 0:10:41]} d5 {[%emt 0:09:19]} 22. cxd5 {[%emt 0:05:58]} exd5 {[%emt 0:01:22]} 23. exd5 {[%emt 0:00:36]} Nxd5 {[%emt 0:00:09]} 24. Nxd5 {[%emt 0:00:13]} Bxd5 {[%emt 0:00:07]} 25. Nf5 {[%emt 0:05:01]} Ne5 {[%emt 0:10:22]} 26. Rxd5 {[%emt 0:05:55]} Qxd5 {[%emt 0:01:22]} 27. f4 {[%emt 0:00:12]} Qd7 {[%emt 0:08:24]} 28. fxe5 {[%emt 0:00:48]} Bxe5 {[%emt 0:00:12]} 29. Rf1 {[%emt 0:08:02]} b5 {[%emt 0:09:58]} 30. Qh4 {[%emt 0:06:26]} Rc2 {[%emt 0:07:21]} 31. g5 {[%emt 0:09:01]} Qd3 {[%emt 0:15:10]} 32. gxh6 {[%emt 0:08:14]} g6 {[%emt 0:05:01]} 33. h7+ {[%emt 0:01:22]} Kh8 {[%emt 0:00:09]} 34. Nh6 {[%emt 0:01:51]} Qxe3+ {[%emt 0:00:54]} 35. Kh1 {[%emt 0:00:04]} Rc7 {[%emt 0:02:19]} 36. Nxf7+ {[%emt 0:01:25]} Rxf7 {[%emt 0:00:07]} 37. Rxf7 {[%emt 0:00:12]} Rc8 {[%emt 0:02:40]} 38. Rf1 {[%emt 0:04:23]} Bg7 {[%emt 0:01:56]} 39. Bh3 {[%emt 0:01:04]} Re8 {[%emt 0:00:54]} 40. Bg2 {[%emt 0:00:00]} Qd2 {[%emt 0:00:00]} 41. a4 {[%emt 0:03:28]} b4 {[%emt 0:08:12]} 42. Qc4 {[%emt 0:02:55]} Qd6 {[%emt 0:03:21]} 43. Qd5 {[%emt 0:02:10]} Qb6 {[%emt 0:02:28]} 44. Qc6 {[%emt 0:01:25]} Qxc6 {[%emt 0:00:50]} 45. Bxc6 {[%emt 0:00:11]} Re3 {[%emt 0:00:10]} 46. Rf3 {[%emt 0:00:01]} Re1+ {[%emt 0:00:00]} 47. Kg2 {[%emt 0:00:11]} Kxh7 {[%emt 0:00:00]} 48. Rf1 {[%emt 0:01:21]} Re5 {[%emt 0:00:21]} 49. Kg3 {[%emt 0:00:48]} Rc5 {[%emt 0:00:15]} 50. Bb7 {[%emt 0:00:52]} a5 {[%emt 0:00:08]} 51. Rf3 {[%emt 0:00:12]} Be5+ {[%emt 0:00:11]} 52. Kh3 {[%emt 0:00:26]} Rc2 {[%emt 0:00:24]} 53. Rf7+ {[%emt 0:01:01]} Kh6 {[%emt 0:00:09]} 54. Bg2 {[%emt 0:00:14]} Kg5 {[%emt 0:00:18]} 55. Rf3 {[%emt 0:00:36]} Rc8 {[%emt 0:00:18]} 56. Bf1 {[%emt 0:00:44]} Rh8+ {[%emt 0:00:06]} 57. Kg2 {[%emt 0:00:05]} Rxh2+ {[%emt 0:00:05]} 58. Kg1 {[%emt 0:00:05]} Rd2 {[%emt 0:00:12]} 59. Rd3 {[%emt 0:00:15]} Rb2 {[%emt 0:00:41]} 60. Rd5 {[%emt 0:01:22]} Kf4 {[%emt 0:00:10]} 61. Rxa5 {[%emt 0:00:14]} Bd4+ {[%emt 0:00:19]} 62. Kh1 {[%emt 0:00:23]} Be3 {[%emt 0:00:24]} 63. Ra8 {[%emt 0:00:50]} Kg3 {[%emt 0:00:24]} 64. Rh8 {[%emt 0:01:12]} Rb1 {[%emt 0:00:08]} 65. Rf8 {[%emt 0:00:39]} Bf2 {[%emt 0:00:08]} 0-1

[Event "HUN-ch U8-U18 2019"]
[Site "Balatonlelle"]
[Date "2019.06.21"]
[Round "1.24"]
[White "Megyaszai, Balazs"]
[Black "Andras, Ferenc"]
[Result "1-0"]
[ECO "B01"]
[WhiteElo "1905"]
[BlackElo "1329"]
[Annotator "NA"]
[PlyCount "91"]
[EventDate "2019.06.21"]
[EventType "swiss"]
[EventCountry "HUN"]
[SourceTitle "playchess.com"]
[Source "ChessBase"]
[SourceQuality "1"]
[TimeControl "40/5400+30:1800+30"]

1. e4 {[%emt 0:00:17]} d5 {[%emt 0:00:25]} 2. exd5 {[%emt 0:01:11]} Qxd5 {[%emt 0:00:28]} 3. Nc3 {[%emt 0:01:39]} Qa5 {[%emt 0:00:34]} 4. d4 {[%emt 0:04:36]} Nf6 {[%emt 0:01:32]} 5. Nf3 {[%emt 0:10:49]} Bf5 {[%emt 0:01:42]} 6. Bd3 {[%emt 0:02:46]} Bxd3 {[%emt 0:03:14]} 7. Qxd3 {[%emt 0:00:57]} c6 {[%emt 0:01:51]} 8. O-O {[%emt 0:08:06]} e6 {[%emt 0:02:31]} 9. Ne5 {[%emt 0:03:51]} Nbd7 {[%emt 0:05:22]} 10. Bf4 {[%emt 0:05:15]} Nxe5 {[%emt 0:23:43]} 11. Bxe5 {[%emt 0:05:12]} O-O-O {[%emt 0:06:16]} 12. Qf3 {[%emt 0:03:35]} Be7 {[%emt 0:07:22]} 13. a3 {[%emt 0:03:17]} Rd7 {[%emt 0:05:46]} 14. b4 {[%emt 0:03:54]} Qd8 {[%emt 0:02:55]} 15. b5 {[%emt 0:07:37]} Qb6 {[%emt 0:10:05]} 16. Rab1 {[%emt 0:04:01]} Bd6 {[%emt 0:04:14]} 17. Na4 {[%emt 0:03:51]} Qc7 {[%emt 0:02:40]} 18. b6 {[%emt 0:00:42]} axb6 {[%emt 0:05:02]} 19. Nxb6+ {[%emt 0:00:18]} Kb8 {[%emt 0:00:52]} 20. Nxd7+ {[%emt 0:01:44]} Qxd7 {[%emt 0:00:15]} 21. Rfd1 {[%emt 0:00:49]} Rc8 {[%emt 0:03:22]} 22. h3 {[%emt 0:01:41]} Qc7 {[%emt 0:02:17]} 23. Qb3 {[%emt 0:09:40]} Rd8 {[%emt 0:03:09]} 24. Bxd6 {[%emt 0:06:56]} Rxd6 {[%emt 0:00:23]} 25. Qg3 {[%emt 0:01:19]} Ne4 {[%emt 0:01:13]} 26. Qe3 {[%emt 0:00:34]} Nf6 {[%emt 0:00:27]} 27. Rd3 {[%emt 0:00:58]} Rd5 {[%emt 0:01:16]} 28. Rdb3 {[%emt 0:00:45]} Rb5 {[%emt 0:01:14]} 29. Rxb5 {[%emt 0:00:26]} cxb5 {[%emt 0:00:07]} 30. Rxb5 {[%emt 0:00:39]} Qxc2 {[%emt 0:00:10]} 31. Rc5 {[%emt 0:00:52]} Qb1+ {[%emt 0:00:37]} 32. Kh2 {[%emt 0:01:27]} Qb6 {[%emt 0:00:14]} 33. Qg3+ {[%emt 0:00:31]} Ka7 {[%emt 0:00:29]} 34. Qxg7 {[%emt 0:01:25]} Ne4 {[%emt 0:01:05]} 35. Rc2 {[%emt 0:00:57]} Qb3 {[%emt 0:01:59]} 36. Re2 {[%emt 0:00:27]} Nd6 {[%emt 0:00:37]} 37. Qe5 {[%emt 0:00:34]} Qxa3 {[%emt 0:00:23]} 38. Re3 {[%emt 0:01:28]} Qb4 {[%emt 0:00:39]} 39. Rf3 {[%emt 0:00:39]} b6 {[%emt 0:01:24]} 40. Qf4 {[%emt 0:00:00]} Nf5 {[%emt 0:00:00]} 41. Qc7+ {[%emt 0:01:57]} Ka6 {[%emt 0:02:47]} 42. Qc8+ {[%emt 0:07:22]} Ka7 {[%emt 0:00:45]} 43. Rc3 {[%emt 0:01:27]} Qd6+ {[%emt 0:04:48]} 44. g3 {[%emt 0:00:34]} b5 {[%emt 0:00:20]} 45. Rc6 {[%emt 0:00:20]} Qa3 {[%emt 0:01:35]} 46. Qd7+ {[%emt 0:00:12]} 1-0

[Event "HUN-ch U8-U18 2019"]
[Site "Balatonlelle"]
[Date "2019.06.21"]
[Round "1.25"]
[White "Petyko, Martin"]
[Black "Szikszai, Bertalan"]
[Result "0-1"]
[ECO "A49"]
[WhiteElo "1248"]
[BlackElo "1896"]
[Annotator "NA"]
[PlyCount "29"]
[EventDate "2019.06.21"]
[EventType "swiss"]
[EventCountry "HUN"]
[SourceTitle "playchess.com"]
[Source "ChessBase"]
[SourceQuality "1"]
[TimeControl "40/5400+30:1800+30"]

1. d4 {[%emt 0:00:02]} Nf6 {[%emt 0:00:05]} 2. Nf3 {[%emt 0:00:07]} g6 {[%emt 0:00:09]} 3. g3 {[%emt 0:00:07]} d5 {[%emt 0:00:07]} 4. Bg2 {[%emt 0:00:06]} Bg7 {[%emt 0:00:11]} 5. c4 {[%emt 0:00:19]} O-O {[%emt 0:03:29]} 6. Nc3 {[%emt 0:00:57]} c5 {[%emt 0:07:07]} 7. Qb3 {[%emt 0:04:34]} cxd4 {[%emt 0:08:44]} 8. Nxd4 {[%emt 0:01:23]} e5 {[%emt 0:00:37]} 9. Nc2 {[%emt 0:02:26]} dxc4 {[%emt 0:15:17]} 10. Qxc4 {[%emt 0:00:33]} Nc6 {[%emt 0:01:36]} 11. Nd5 {[%emt 0:06:24]} Be6 {[%emt 0:01:23]} 12. Nxf6+ {[%emt 0:03:40]} Bxf6 {[%emt 0:00:57]} 13. Qa4 {[%emt 0:05:56]} Rc8 {[%emt 0:04:33]} 14. O-O {[%emt 0:02:11]} a6 {[%emt 0:05:09]} 15. Rd1 {[%emt 0:02:55]} 0-1

[Event "HUN-ch U8-U18 2019"]
[Site "Balatonlelle"]
[Date "2019.06.21"]
[Round "1.26"]
[White "Turcsanyi, Vince Gergo"]
[Black "Vancsisin, Mark"]
[Result "1-0"]
[ECO "C77"]
[WhiteElo "1816"]
[BlackElo "1246"]
[Annotator "NA"]
[PlyCount "93"]
[EventDate "2019.06.21"]
[EventType "swiss"]
[EventCountry "HUN"]
[SourceTitle "playchess.com"]
[Source "ChessBase"]
[SourceQuality "1"]
[TimeControl "40/5400+30:1800+30"]

1. e4 e5 {[%emt 0:00:21]} 2. Nf3 {[%emt 0:00:22]} Nc6 {[%emt 0:00:28]} 3. Bb5 {[%emt 0:03:00]} a6 {[%emt 0:01:03]} 4. Ba4 {[%emt 0:00:57]} Nf6 {[%emt 0:01:01]} 5. Qe2 {[%emt 0:00:50]} b5 {[%emt 0:00:50]} 6. Bb3 {[%emt 0:01:01]} Be7 {[%emt 0:00:56]} 7. c3 {[%emt 0:01:22]} d6 {[%emt 0:01:51]} 8. O-O {[%emt 0:02:53]} O-O {[%emt 0:01:55]} 9. d4 {[%emt 0:06:49]} Bg4 {[%emt 0:09:26]} 10. Rd1 {[%emt 0:06:25]} d5 {[%emt 0:09:48]} 11. dxe5 {[%emt 0:18:33]} Nxe5 {[%emt 0:03:31]} 12. Bxd5 {[%emt 0:02:23]} Nxd5 {[%emt 0:02:13]} 13. Rxd5 {[%emt 0:00:46]} Bd6 {[%emt 0:04:04]} 14. Nbd2 {[%emt 0:28:53]} Be6 {[%emt 0:08:58]} 15. Rxe5 {[%emt 0:01:00]} Bxe5 {[%emt 0:02:03]} 16. Nxe5 {[%emt 0:00:30]} Qd6 {[%emt 0:02:03]} 17. Nef3 {[%emt 0:04:06]} Rad8 {[%emt 0:01:21]} 18. Nd4 {[%emt 0:06:05]} Rfe8 {[%emt 0:02:11]} 19. a4 {[%emt 0:06:33]} c6 {[%emt 0:02:30]} 20. axb5 {[%emt 0:03:08]} cxb5 {[%emt 0:01:05]} 21. Nxe6 {[%emt 0:01:52]} Rxe6 {[%emt 0:00:58]} 22. h3 {[%emt 0:00:47]} f5 {[%emt 0:01:04]} 23. Qf3 {[%emt 0:01:24]} g6 {[%emt 0:01:59]} 24. b3 {[%emt 0:01:27]} Rde8 {[%emt 0:00:43]} 25. exf5 {[%emt 0:00:31]} Re1+ {[%emt 0:00:40]} 26. Nf1 {[%emt 0:00:01]} Qd1 {[%emt 0:00:54]} 27. Qxd1 {[%emt 0:00:25]} Rxd1 28. Bb2 {[%emt 0:00:28]} Rxa1 {[%emt 0:01:10]} 29. Bxa1 {[%emt 0:00:09]} Re1 {[%emt 0:00:08]} 30. Bb2 {[%emt 0:00:22]} Rb1 {[%emt 0:00:20]} 31. Ba3 {[%emt 0:00:12]} Rxb3 {[%emt 0:00:20]} 32. Bb4 {[%emt 0:00:10]} gxf5 {[%emt 0:00:09]} 33. Ne3 {[%emt 0:01:40]} Kf7 {[%emt 0:00:49]} 34. Nxf5 {[%emt 0:00:33]} Kf6 {[%emt 0:00:44]} 35. Nd4 {[%emt 0:00:36]} Rb1+ {[%emt 0:00:34]} 36. Kh2 {[%emt 0:00:07]} Ke5 {[%emt 0:00:36]} 37. Kg3 {[%emt 0:01:30]} Kd5 {[%emt 0:00:27]} 38. f4 {[%emt 0:00:33]} Rxb4 {[%emt 0:00:49]} 39. cxb4 {[%emt 0:00:08]} Kxd4 {[%emt 0:00:06]} 40. f5 {[%emt 0:00:00]} Ke5 {[%emt 0:00:00]} 41. Kg4 {[%emt 0:00:59]} Kf6 {[%emt 0:01:38]} 42. Kf4 {[%emt 0:00:14]} h6 {[%emt 0:00:38]} 43. g4 {[%emt 0:00:15]} Kf7 {[%emt 0:01:13]} 44. Ke5 {[%emt 0:00:07]} Ke7 {[%emt 0:00:08]} 45. h4 {[%emt 0:01:14]} a5 {[%emt 0:00:55]} 46. bxa5 {[%emt 0:00:49]} b4 {[%emt 0:00:06]} 47. Kd4 {[%emt 0:00:04]} 1-0

[Event "HUN-ch U8-U18 2019"]
[Site "Balatonlelle"]
[Date "2019.06.21"]
[Round "1.27"]
[White "Cserpes, Gabor Janos"]
[Black "Giang, Tran Nam"]
[Result "0-1"]
[ECO "B21"]
[WhiteElo "1263"]
[BlackElo "2008"]
[Annotator "NA"]
[PlyCount "44"]
[EventDate "2019.06.21"]
[EventType "swiss"]
[EventCountry "HUN"]
[SourceTitle "playchess.com"]
[Source "ChessBase"]
[SourceQuality "1"]
[TimeControl "40/5400+30:1800+30"]

1. e4 {[%emt 0:00:07]} c5 {[%emt 0:00:02]} 2. f4 {[%emt 0:00:28]} d5 {[%emt 0:00:24]} 3. Nc3 {[%emt 0:00:34]} e6 {[%emt 0:01:29]} 4. Nf3 {[%emt 0:02:14]} dxe4 {[%emt 0:01:10]} 5. Nxe4 {[%emt 0:00:27]} Nc6 {[%emt 0:00:55]} 6. Be2 {[%emt 0:00:29]} Nh6 {[%emt 0:01:47]} 7. O-O {[%emt 0:02:57]} Be7 {[%emt 0:01:13]} 8. h3 {[%emt 0:00:58]} Nf5 {[%emt 0:01:30]} 9. d3 {[%emt 0:01:55]} O-O {[%emt 0:01:56]} 10. c3 {[%emt 0:03:17]} b6 {[%emt 0:03:38]} 11. Qc2 {[%emt 0:02:34]} Bb7 {[%emt 0:01:03]} 12. Rd1 {[%emt 0:03:17]} Qc7 {[%emt 0:03:04]} 13. d4 {[%emt 0:05:30]} cxd4 {[%emt 0:05:32]} 14. cxd4 {[%emt 0:01:49]} Rac8 {[%emt 0:02:20]} 15. d5 {[%emt 0:03:40]} Ncd4 {[%emt 0:03:42]} 16. Nxd4 {[%emt 0:05:32]} Nxd4 {[%emt 0:00:25]} 17. Qxc7 {[%emt 0:00:40]} Nxe2+ {[%emt 0:00:04]} 18. Kf2 {[%emt 0:00:54]} Rxc7 {[%emt 0:00:24]} 19. Kxe2 {[%emt 0:00:25]} Bxd5 {[%emt 0:00:46]} 20. g3 {[%emt 0:00:56]} Bxe4 {[%emt 0:00:14]} 21. Ke3 {[%emt 0:01:04]} Bg2 {[%emt 0:01:09]} 22. Rg1 {[%emt 0:01:31]} Bc5+ {[%emt 0:00:08]} 0-1

[Event "HUN-ch U8-U18 2019"]
[Site "Balatonlelle"]
[Date "2019.06.21"]
[Round "1.28"]
[White "Panda, Barnabas"]
[Black "Nagy, Levente"]
[Result "1-0"]
[ECO "E70"]
[WhiteElo "1722"]
[BlackElo "2092"]
[Annotator "NA"]
[PlyCount "75"]
[EventDate "2019.06.21"]
[EventType "swiss"]
[EventCountry "HUN"]
[SourceTitle "playchess.com"]
[Source "ChessBase"]
[SourceQuality "1"]
[TimeControl "40/5400+30:1800+30"]

1. d4 {[%emt 0:00:05]} Nf6 {[%emt 0:00:09]} 2. c4 {[%emt 0:00:15]} g6 {[%emt 0:00:06]} 3. Nc3 {[%emt 0:00:47]} Bg7 {[%emt 0:00:43]} 4. e4 {[%emt 0:00:43]} O-O {[%emt 0:00:57]} 5. e5 {[%emt 0:03:38]} Ne8 {[%emt 0:01:49]} 6. f4 {[%emt 0:02:22]} d6 {[%emt 0:03:54]} 7. Nf3 {[%emt 0:01:56]} b6 {[%emt 0:02:54]} 8. Bd3 {[%emt 0:04:21]} c5 {[%emt 0:02:21]} 9. Be4 {[%emt 0:01:48]} Nc6 {[%emt 0:08:15]} 10. Bxc6 {[%emt 0:00:58]} Rb8 {[%emt 0:00:10]} 11. Be3 {[%emt 0:03:02]} Nc7 {[%emt 0:03:06]} 12. O-O {[%emt 0:03:48]} cxd4 {[%emt 0:03:26]} 13. Bxd4 {[%emt 0:03:58]} Ne6 {[%emt 0:02:11]} 14. Be3 {[%emt 0:02:09]} Qc7 {[%emt 0:02:03]} 15. Nd5 {[%emt 0:02:00]} Qd8 {[%emt 0:01:58]} 16. Qa4 {[%emt 0:04:39]} a6 {[%emt 0:04:30]} 17. exd6 {[%emt 0:05:17]} exd6 {[%emt 0:03:44]} 18. Qb3 {[%emt 0:02:01]} Nc5 {[%emt 0:02:22]} 19. Bxc5 {[%emt 0:02:16]} dxc5 {[%emt 0:01:27]} 20. Rad1 {[%emt 0:01:22]} Be6 {[%emt 0:04:17]} 21. Ne5 {[%emt 0:04:35]} Bxe5 {[%emt 0:03:15]} 22. fxe5 {[%emt 0:00:15]} Bxd5 {[%emt 0:01:44]} 23. Bxd5 {[%emt 0:02:07]} Qc7 {[%emt 0:02:41]} 24. e6 {[%emt 0:00:37]} fxe6 {[%emt 0:02:34]} 25. Bxe6+ {[%emt 0:00:40]} Kh8 {[%emt 0:01:12]} 26. Rxf8+ {[%emt 0:03:15]} Rxf8 {[%emt 0:00:17]} 27. Rd7 {[%emt 0:01:18]} Qf4 {[%emt 0:01:51]} 28. Qc3+ {[%emt 0:01:25]} Rf6 {[%emt 0:00:31]} 29. Qf3 {[%emt 0:02:28]} Qxf3 {[%emt 0:01:00]} 30. gxf3 {[%emt 0:00:53]} Rxe6 {[%emt 0:00:15]} 31. Kf2 {[%emt 0:00:01]} a5 {[%emt 0:00:40]} 32. b3 {[%emt 0:01:01]} Kg8 {[%emt 0:00:35]} 33. a4 {[%emt 0:00:33]} Kh8 {[%emt 0:00:09]} 34. f4 {[%emt 0:00:53]} Kg8 {[%emt 0:00:21]} 35. Kf3 {[%emt 0:00:16]} Kh8 {[%emt 0:00:52]} 36. Kg4 {[%emt 0:03:34]} Re3 {[%emt 0:01:07]} 37. Kg5 {[%emt 0:00:11]} Rxb3 {[%emt 0:00:37]} 38. Kf6 {[%emt 0:00:18]} 1-0

[Event "HUN-ch U8-U18 2019"]
[Site "Balatonlelle"]
[Date "2019.06.21"]
[Round "1.29"]
[White "Toth, Rafael"]
[Black "Csernyik, Mark"]
[Result "1/2-1/2"]
[ECO "B01"]
[WhiteElo "1178"]
[BlackElo "1704"]
[Annotator "NA"]
[PlyCount "112"]
[EventDate "2019.06.21"]
[EventType "swiss"]
[EventCountry "HUN"]
[SourceTitle "playchess.com"]
[Source "ChessBase"]
[SourceQuality "1"]
[TimeControl "40/5400+30:1800+30"]

1. e4 {[%emt 0:00:02]} d5 {[%emt 0:00:19]} 2. exd5 {[%emt 0:00:09]} Qxd5 {[%emt 0:00:06]} 3. Nc3 {[%emt 0:00:11]} Qd6 {[%emt 0:00:13]} 4. Nf3 {[%emt 0:00:18]} Nf6 {[%emt 0:00:12]} 5. Be2 {[%emt 0:00:29]} a6 {[%emt 0:00:46]} 6. O-O {[%emt 0:00:34]} b6 {[%emt 0:00:15]} 7. d4 {[%emt 0:00:36]} Bb7 {[%emt 0:00:11]} 8. Be3 {[%emt 0:00:39]} e6 {[%emt 0:00:30]} 9. Qd2 {[%emt 0:00:40]} Be7 {[%emt 0:00:28]} 10. Rad1 {[%emt 0:00:45]} O-O {[%emt 0:00:51]} 11. a3 {[%emt 0:01:02]} Nc6 {[%emt 0:02:04]} 12. Bf4 {[%emt 0:01:36]} Qd8 {[%emt 0:01:56]} 13. Rfe1 {[%emt 0:02:55]} Bd6 {[%emt 0:01:54]} 14. Bg5 {[%emt 0:03:14]} Be7 {[%emt 0:02:53]} 15. b4 {[%emt 0:04:44]} b5 {[%emt 0:01:30]} 16. Ne5 {[%emt 0:03:29]} Nxe5 {[%emt 0:04:11]} 17. dxe5 {[%emt 0:00:25]} Nd5 {[%emt 0:00:29]} 18. Bxe7 {[%emt 0:00:40]} Qxe7 {[%emt 0:00:15]} 19. Bf3 {[%emt 0:01:50]} Rad8 {[%emt 0:01:05]} 20. Nxd5 {[%emt 0:01:56]} Bxd5 {[%emt 0:00:15]} 21. Bxd5 {[%emt 0:01:20]} Rxd5 {[%emt 0:00:11]} 22. Qf4 {[%emt 0:00:42]} Rfd8 {[%emt 0:00:28]} 23. Rxd5 {[%emt 0:01:10]} Rxd5 {[%emt 0:00:25]} 24. c4 {[%emt 0:01:41]} Rd3 {[%emt 0:00:33]} 25. Ra1 {[%emt 0:09:45]} Qd7 {[%emt 0:00:56]} 26. g3 {[%emt 0:01:55]} Rd4 {[%emt 0:01:18]} 27. Qf3 {[%emt 0:05:21]} bxc4 {[%emt 0:00:22]} 28. Qa8+ {[%emt 0:01:07]} Qd8 {[%emt 0:00:15]} 29. Qxd8+ {[%emt 0:02:20]} Rxd8 {[%emt 0:00:13]} 30. a4 {[%emt 0:01:20]} h6 {[%emt 0:00:25]} 31. b5 {[%emt 0:01:09]} Ra8 {[%emt 0:02:34]} 32. Rb1 {[%emt 0:02:12]} Rb8 {[%emt 0:00:38]} 33. Kg2 {[%emt 0:01:26]} axb5 {[%emt 0:00:35]} 34. axb5 {[%emt 0:00:27]} Kh7 {[%emt 0:00:39]} 35. f4 {[%emt 0:00:39]} Rd8 {[%emt 0:01:17]} 36. Rc1 {[%emt 0:01:19]} Rd4 {[%emt 0:00:39]} 37. Kf3 {[%emt 0:00:44]} Kg6 {[%emt 0:00:59]} 38. g4 {[%emt 0:00:40]} Rd5 {[%emt 0:01:41]} 39. Rxc4 {[%emt 0:00:57]} Rxb5 {[%emt 0:00:15]} 40. Rxc7 {[%emt 0:00:00]} Rb3+ {[%emt 0:00:00]} 41. Kg2 {[%emt 0:00:56]} Rb4 {[%emt 0:03:38]} 42. Kf3 {[%emt 0:00:29]} f6 {[%emt 0:02:48]} 43. h4 {[%emt 0:03:01]} fxe5 {[%emt 0:00:44]} 44. fxe5 {[%emt 0:00:52]} Rb3+ {[%emt 0:00:17]} 45. Kf4 {[%emt 0:00:45]} Rb4+ {[%emt 0:00:59]} 46. Kf3 {[%emt 0:00:22]} Rb6 {[%emt 0:01:23]} 47. Kf4 {[%emt 0:00:42]} Kh7 {[%emt 0:00:31]} 48. h5 {[%emt 0:02:15]} Rb8 {[%emt 0:01:54]} 49. Re7 {[%emt 0:00:53]} Rb6 {[%emt 0:00:18]} 50. Re8 {[%emt 0:01:09]} g6 {[%emt 0:01:16]} 51. Re7+ {[%emt 0:00:37]} Kg8 {[%emt 0:00:14]} 52. hxg6 {[%emt 0:00:23]} Ra6 {[%emt 0:01:44]} 53. g7 {[%emt 0:00:36]} Kh7 {[%emt 0:01:11]} 54. Rf7 {[%emt 0:01:10]} Kg8 {[%emt 0:00:33]} 55. Re7 {[%emt 0:00:23]} Kh7 {[%emt 0:00:12]} 56. Rd7 Ra8 1/2-1/2

[Event "HUN-ch U8-U18 2019"]
[Site "Balatonlelle"]
[Date "2019.06.21"]
[Round "1.30"]
[White "Foldes, Marton Gabor"]
[Black "Baki, Bence"]
[Result "1-0"]
[ECO "C44"]
[WhiteElo "1653"]
[BlackElo "1174"]
[Annotator "NA"]
[PlyCount "33"]
[EventDate "2019.06.21"]
[EventType "swiss"]
[EventCountry "HUN"]
[SourceTitle "playchess.com"]
[Source "ChessBase"]
[SourceQuality "1"]
[TimeControl "40/5400+30:1800+30"]

1. e4 {[%emt 0:00:02]} e5 {[%emt 0:00:17]} 2. Nf3 {[%emt 0:00:08]} Nc6 {[%emt 0:00:34]} 3. d4 {[%emt 0:00:21]} exd4 {[%emt 0:00:21]} 4. Bc4 {[%emt 0:00:17]} Bb4+ {[%emt 0:02:01]} 5. c3 {[%emt 0:00:21]} dxc3 {[%emt 0:00:54]} 6. bxc3 {[%emt 0:00:26]} Bc5 {[%emt 0:00:38]} 7. Qd5 {[%emt 0:00:19]} Qe7 {[%emt 0:00:40]} 8. Bg5 {[%emt 0:00:53]} f6 {[%emt 0:00:50]} 9. Bf4 {[%emt 0:00:59]} d6 {[%emt 0:00:54]} 10. Nbd2 {[%emt 0:01:48]} Bd7 {[%emt 0:01:21]} 11. O-O {[%emt 0:02:11]} O-O-O {[%emt 0:02:44]} 12. Rab1 {[%emt 0:02:10]} g5 {[%emt 0:01:50]} 13. Be3 {[%emt 0:03:16]} g4 {[%emt 0:01:44]} 14. Nd4 {[%emt 0:03:35]} Qe5 {[%emt 0:01:29]} 15. Ba6 {[%emt 0:13:16]} bxa6 {[%emt 0:01:05]} 16. Nxc6 {[%emt 0:00:18]} Qxd5 {[%emt 0:01:33]} 17. Rb8# {[%emt 0:00:15]} 1-0

[Event "HUN-ch U8-U18 2019"]
[Site "Balatonlelle"]
[Date "2019.06.21"]
[Round "1.31"]
[White "Tarsoly, Csanad"]
[Black "Pasti, Zsombor"]
[Result "0-1"]
[ECO "C45"]
[WhiteElo "1110"]
[BlackElo "1641"]
[Annotator "NA"]
[PlyCount "46"]
[EventDate "2019.06.21"]
[EventType "swiss"]
[EventCountry "HUN"]
[SourceTitle "playchess.com"]
[Source "ChessBase"]
[SourceQuality "1"]
[TimeControl "40/5400+30:1800+30"]

1. e4 {[%emt 0:00:02]} e5 {[%emt 0:00:03]} 2. Nf3 {[%emt 0:00:04]} Nc6 {[%emt 0:00:11]} 3. d4 {[%emt 0:00:09]} exd4 {[%emt 0:00:08]} 4. Nxd4 {[%emt 0:00:07]} Bc5 {[%emt 0:00:10]} 5. Nb3 {[%emt 0:00:10]} Bb6 {[%emt 0:00:23]} 6. Qe2 {[%emt 0:00:07]} d6 {[%emt 0:00:43]} 7. Nc3 {[%emt 0:00:05]} Nf6 {[%emt 0:01:07]} 8. Be3 {[%emt 0:00:17]} O-O {[%emt 0:01:50]} 9. O-O-O {[%emt 0:00:09]} Bxe3+ {[%emt 0:00:34]} 10. Qxe3 {[%emt 0:00:09]} Re8 {[%emt 0:02:12]} 11. f3 {[%emt 0:00:15]} a5 {[%emt 0:00:29]} 12. g4 {[%emt 0:01:04]} a4 {[%emt 0:01:06]} 13. Nd4 {[%emt 0:01:12]} a3 {[%emt 0:01:36]} 14. b3 {[%emt 0:00:26]} Nb4 {[%emt 0:16:04]} 15. h4 {[%emt 0:01:25]} Qe7 {[%emt 0:04:27]} 16. Bc4 {[%emt 0:03:04]} d5 {[%emt 0:00:54]} 17. Bd3 {[%emt 0:06:22]} c5 {[%emt 0:00:41]} 18. Nde2 {[%emt 0:03:59]} d4 {[%emt 0:00:24]} 19. Nxd4 {[%emt 0:00:30]} cxd4 {[%emt 0:00:05]} 20. Qxd4 {[%emt 0:00:13]} Rd8 {[%emt 0:01:34]} 21. Qe3 {[%emt 0:00:30]} Nfd5 {[%emt 0:00:45]} 22. Qd2 {[%emt 0:01:51]} Nxc3 {[%emt 0:00:04]} 23. Qxc3 {[%emt 0:00:15]} Nxa2+ {[%emt 0:00:02]} 0-1

[Event "HUN-ch U8-U18 2019"]
[Site "Balatonlelle"]
[Date "2019.06.21"]
[Round "1.32"]
[White "Vadkerti, Vince"]
[Black "Berla, Zoltan Mate"]
[Result "1-0"]
[ECO "B01"]
[WhiteElo "1558"]
[BlackElo "1098"]
[Annotator "NA"]
[PlyCount "33"]
[EventDate "2019.06.21"]
[EventType "swiss"]
[EventCountry "HUN"]
[SourceTitle "playchess.com"]
[Source "ChessBase"]
[SourceQuality "1"]
[TimeControl "40/5400+30:1800+30"]

1. e4 {[%emt 0:00:07]} d5 {[%emt 0:00:06]} 2. exd5 {[%emt 0:00:14]} Qxd5 {[%emt 0:00:05]} 3. Nc3 {[%emt 0:00:22]} Qd6 {[%emt 0:00:07]} 4. d4 {[%emt 0:00:37]} Nf6 {[%emt 0:00:19]} 5. Bd3 {[%emt 0:00:59]} c6 {[%emt 0:02:51]} 6. Nf3 {[%emt 0:00:57]} Nbd7 {[%emt 0:05:38]} 7. h3 {[%emt 0:02:24]} Nb6 {[%emt 0:02:50]} 8. O-O {[%emt 0:04:42]} Bd7 {[%emt 0:06:56]} 9. Bg5 {[%emt 0:02:17]} O-O-O {[%emt 0:01:47]} 10. a3 {[%emt 0:02:52]} h6 {[%emt 0:01:04]} 11. Bh4 {[%emt 0:01:09]} Be6 {[%emt 0:01:28]} 12. Bg3 {[%emt 0:01:31]} Qd7 {[%emt 0:01:29]} 13. Qe2 {[%emt 0:02:26]} g5 {[%emt 0:02:14]} 14. Qe5 {[%emt 0:00:21]} Qd6 {[%emt 0:00:29]} 15. Qa5 {[%emt 0:00:32]} Qd7 {[%emt 0:01:42]} 16. Qxa7 {[%emt 0:00:45]} Nfd5 {[%emt 0:02:53]} 17. Qb8# {[%emt 0:00:18]} 1-0